fUSD/lending_fUSD_20250804
["ID","MTS","AMOUNT","RATE_DAILY","PERIOD"]
[377327032,1754348455018,-400.0,0.00049486,120]
[377327033,1754348455043,-1722.95,0.00049486,120]
[377327034,1754348455068,-7337.89,0.00049486,120]
[377327035,1754348455091,-400.0,0.00049486,120]
[377327036,1754348455115,-2671.48,0.00049486,120]
[377327037,1754348455138,-2501.99,0.00049486,120]
[377327038,1754348455169,-735.32,0.00049486,120]
[377327039,1754348455192,-400.0,0.00049486,120]
[377327040,1754348455215,-400.0,0.00049486,120]
[377327041,1754348455238,-789.48,0.00049486,120]
[377327042,1754348455262,-1679.83,0.00049486,120]
[377327043,1754348455284,-500.8180113,0.00049486,120]
[377327044,1754348455313,-400.0,0.00049486,120]
[377327045,1754348455335,-400.0,0.00049486,7]
[377327046,1754348455358,-4393.36,0.00049486,120]
[377327047,1754348455380,-446.85,0.00049486,120]
[377327048,1754348455402,-500.0,0.00049486,120]
[377327049,1754348455424,-982.93,0.00049486,120]
[377327050,1754348455446,-2843.22,0.00049486,120]
[377327051,1754348455469,-520.46,0.00049486,120]
[377327052,1754348455491,-404.69,0.00049486,120]
[377327053,1754348455513,-400.0,0.00049486,120]
[377327054,1754348455536,-500.0,0.00049486,120]
[377327055,1754348455561,-657.0,0.00049486,120]
[377327056,1754348455587,-4074.56,0.00049486,120]
[377327057,1754348455610,-983.71,0.00049486,120]
[377327058,1754348455633,-400.0,0.00049486,120]
[377327059,1754348455657,-400.0,0.00049486,120]
[377327060,1754348455679,-1066.79,0.00049486,120]
[377327061,1754348455701,-400.0,0.00049486,120]
[377327062,1754348455724,-1719.36,0.00049486,120]
[377327063,1754348455748,-9029.31,0.00049486,120]
[377327064,1754348455771,-655.93,0.00049486,120]
[377327065,1754348455793,-1184.51,0.00049486,120]
[377327066,1754348455816,-1101.88,0.00049486,120]
[377327067,1754348455839,-400.0,0.00049486,60]
[377327068,1754348455861,-400.0,0.00049486,120]
[377327069,1754348455884,-128698.85,0.00049486,120]
[377327070,1754348455906,-431.54,0.00049486,120]
[377327071,1754348455928,-400.0,0.00049486,120]
[377327072,1754348455950,-400.0,0.00049486,7]
[377327073,1754348455973,-3745.06,0.00049486,120]
[377327074,1754348455994,-400.0,0.00049486,120]
[377327075,1754348456015,-400.0,0.00049486,120]
[377327076,1754348456036,-3070.29,0.00049486,120]
[377327077,1754348456058,-514.36,0.00049486,120]
[377327078,1754348456080,-11385.87,0.00049486,120]
[377327079,1754348456102,-877.15,0.00049486,120]
[377327080,1754348456124,-443.81,0.00049486,120]
[377327081,1754348456145,-2339.35,0.00049486,120]
[377327082,1754348456166,-400.0,0.00049486,120]
[377327083,1754348456187,-796.1,0.00049486,120]
[377327084,1754348456208,-400.0,0.00049486,120]
[377327085,1754348456230,-400.0,0.00049486,120]
[377327086,1754348456251,-400.0,0.00049486,7]
[377327087,1754348456271,-400.0,0.00049486,120]
[377327088,1754348456292,-400.0,0.00049486,120]
[377327089,1754348456313,-6814.54,0.00049486,120]
[377327090,1754348456335,-446.94,0.00049486,120]
[377327091,1754348456357,-150.59122118,0.00049523,120]
[377327092,1754348456377,-320.45859292,0.00049547,7]
[377327093,1754348456400,-27280.7619742,0.00049547,4]
[377327094,1754348456422,-1452.45319723,0.00049549,2]
[377327095,1754348456444,-13640.3809871,0.00049553,4]
[377327096,1754348456468,-500.0,0.00049556,120]
[377327097,1754348456489,-168.26696553,0.00049556,120]
[377327098,1754348456511,-500.0,0.00049556,120]
[377327099,1754348456534,-500.0,0.00049556,120]
[377327100,1754348456563,-477.82067014,0.00049556,120]
[377327101,1754348456585,-248.49016747,0.00049556,120]
[377327102,1754348456610,-500.0,0.00049556,120]
[377327103,1754348456636,-500.0,0.00049556,120]
[377327104,1754348456976,-500.0,0.00049556,120]
[377327105,1754348457001,-500.0,0.00049556,120]
[377327106,1754348457023,-500.0,0.00049556,120]
[377327107,1754348457044,-500.0,0.00049556,120]
[377327108,1754348457067,-562.9319113,0.00049556,120]
[377327109,1754348457088,-291.53118741,0.00049556,120]
[377327110,1754348457109,-500.0,0.00049556,120]
[377327111,1754348457131,-500.0,0.00049556,120]
[377327112,1754348457153,-306.42509082,0.00049556,120]
[377327113,1754348457175,-500.0,0.00049556,120]
[377327114,1754348457198,-500.0,0.00049556,120]
[377327115,1754348457222,-500.0,0.00049556,120]
[377327116,1754348457246,-114003.75939509,0.00049557,44]
[377327117,1754348461687,-247.55279595,0.00040212,15]
[377327121,1754348540831,-67.94720405,0.00040212,15]
[377327122,1754348540853,-315.5,0.00041538,120]
[377327123,1754348540875,-315.5,0.00042863,120]
[377327124,1754348540896,-315.5,0.00044189,120]
[377327125,1754348540918,-315.5,0.00045515,120]
[377327126,1754348540938,-151.0,0.00045983,7]
[377327127,1754348540959,-151.0,0.00046426,7]
[377327128,1754348540980,-151.0,0.00046805,15]
[377327129,1754348541002,-315.5,0.0004684,120]
[377327130,1754348541024,-151.0,0.00046983,15]
[377327131,1754348541048,-888.0,0.000474,55]
[377327132,1754348541069,-175.0,0.00047713,7]
[377327133,1754348541091,-338.63002668,0.00047903,120]
[377327134,1754348541112,-315.5,0.00048166,120]
[377327135,1754348541132,-1427.0,0.00048171,2]
[377327136,1754348541153,-632.85,0.00048283,2]
[377327137,1754348541173,-1000.0,0.00048323,2]
[377327138,1754348541194,-502.0,0.00048752,10]
[377327139,1754348541215,-2471.18786,0.0004939,46]
[377327140,1754348541234,-150.0,0.00049397,120]
[377327141,1754348541256,-150.0,0.00049397,120]
[377327142,1754348541277,-765.19288977,0.00049474,36]
[377327143,1754348541298,-300.0,0.00049484,5]
[377327144,1754348541319,-400.0,0.00049485,120]
[377327145,1754348541345,-400.0,0.00049485,120]
[377327146,1754348541367,-400.0,0.00049485,120]
[377327147,1754348541392,-1311.77,0.00049485,120]
[377327148,1754348541413,-1460.27,0.00049485,120]
[377327149,1754348541435,-2411.75,0.00049485,120]
[377327150,1754348541459,-400.0,0.00049485,120]
[377327151,1754348541482,-4502.65,0.00049485,120]
[377327153,1754348541505,-899.38,0.00049485,120]
[377327154,1754348541529,-1606.71,0.00049485,120]
[377327155,1754348541552,-400.0,0.00049485,120]
[377327156,1754348541573,-1072.18,0.00049485,120]
[377327157,1754348541593,-3548.97,0.00049485,120]
[377327158,1754348541619,-700.95,0.00049485,120]
[377327159,1754348541640,-276.72058409,0.00049485,120]
[377327160,1754348541665,-1548.88,0.00049485,120]
[377327161,1754348541688,-168.78100177,0.00049485,2]
[377327162,1754348541708,-1695.28,0.00049485,120]
[377327163,1754348541729,-400.0,0.00049485,120]
[377327164,1754348541751,-400.0,0.00049485,120]
[377327165,1754348541773,-400.0,0.00049485,120]
[377327166,1754348541794,-400.0,0.00049485,120]
[377327167,1754348541814,-400.0,0.00049485,120]
[377327168,1754348541834,-2538.19,0.00049485,120]
[377327169,1754348542124,-1595.83,0.00049485,120]
[377327170,1754348542150,-400.0,0.00049485,120]
[377327171,1754348542174,-400.0,0.00049485,120]
[377327172,1754348542197,-400.0,0.00049485,120]
[377327173,1754348542218,-479.48,0.00049485,120]
[377327174,1754348542242,-1387.48,0.00049485,120]
[377327175,1754348542264,-4787.3,0.00049485,120]
[377327176,1754348542286,-894.19,0.00049485,120]
[377327177,1754348542309,-400.0,0.00049485,120]
[377327178,1754348542333,-400.0,0.00049485,120]
[377327179,1754348542355,-4805.52,0.00049485,120]
[377327180,1754348542376,-400.0,0.00049485,120]
[377327181,1754348542399,-2244.92,0.00049485,120]
[377327182,1754348542423,-400.0,0.00049485,120]
[377327183,1754348542447,-400.0,0.00049485,120]
[377327184,1754348542469,-400.0,0.00049485,120]
[377327185,1754348542494,-400.0,0.00049485,120]
[377327186,1754348542517,-400.0,0.00049485,120]
[377327187,1754348542539,-400.0,0.00049485,120]
[377327188,1754348542563,-400.0,0.00049485,120]
[377327189,1754348542587,-1914.21,0.00049485,120]
[377327190,1754348542612,-400.0,0.00049485,120]
[377327191,1754348542633,-1146.81,0.00049485,120]
[377327192,1754348542657,-400.0,0.00049485,120]
[377327193,1754348542678,-400.0,0.00049485,120]
[377327194,1754348542701,-1235.55,0.00049485,120]
[377327195,1754348542721,-1671.48,0.00049485,120]
[377327196,1754348542743,-6567.06,0.00049485,120]
[377327197,1754348542764,-1806.55,0.00049485,120]
[377327198,1754348542786,-400.0,0.00049485,120]
[377327199,1754348542808,-3853.83,0.00049485,120]
[377327200,1754348542831,-400.0,0.00049485,120]
[377327201,1754348542852,-400.0,0.00049485,120]
[377327202,1754348542873,-2454.64,0.00049485,120]
[377327203,1754348542894,-400.0,0.00049485,120]
[377327204,1754348542916,-400.0,0.00049485,120]
[377327205,1754348542940,-811.85,0.00049485,120]
[377327206,1754348542960,-400.0,0.00049485,120]
[377327207,1754348542980,-400.0,0.00049485,120]
[377327208,1754348543003,-36.01043364,0.00049485,120]
[377327209,1754348620032,256.72721634,0.00030136,120]
[377327210,1754348624936,-153.0,0.00045,120]
[377327211,1754348624959,-153.0,0.000468,120]
[377327212,1754348624985,-151.67875135,0.00047305,15]
[377327213,1754348625006,-151.0,0.00047599,15]
[377327214,1754348625028,-151.0,0.00047863,15]
[377327215,1754348625050,-169.31501334,0.00047903,120]
[377327216,1754348625072,-151.0,0.00048062,15]
[377327217,1754348625094,-151.0,0.00048198,15]
[377327218,1754348625116,-6957.62,0.00048567,7]
[377327219,1754348625140,-153.0,0.000486,120]
[377327220,1754348625162,-2958.86956636,0.00049485,120]
[377327221,1754348625185,-1609.01,0.00049485,120]
[377327222,1754348625210,-1513.0,0.00049485,120]
[377327223,1754348625232,-400.0,0.00049485,120]
[377327224,1754348625253,-3543.35,0.00049485,120]
[377327225,1754348625275,-653.68,0.00049485,120]
[377327226,1754348625297,-400.0,0.00049485,120]
[377327227,1754348625321,-5331.56,0.00049485,120]
[377327228,1754348625343,-400.0,0.00049485,120]
[377327229,1754348625367,-3283.86,0.00049485,120]
[377327230,1754348625388,-425.42,0.00049485,120]
[377327231,1754348625410,-3410.26,0.00049485,120]
[377327232,1754348625431,-400.0,0.00049485,120]
[377327233,1754348625452,-400.0,0.00049485,30]
[377327234,1754348625472,-925.46,0.00049485,120]
[377327235,1754348625493,-4133.76,0.00049485,120]
[377327236,1754348625514,-400.0,0.00049485,120]
[377327237,1754348625536,-815.33,0.00049485,120]
[377327238,1754348625560,-691.11,0.00049485,120]
[377327239,1754348625584,-8675.71,0.00049485,120]
[377327240,1754348625607,-400.0,0.00049485,120]
[377327241,1754348625627,-400.0,0.00049485,120]
[377327242,1754348625649,-1671.07,0.00049485,120]
[377327243,1754348625672,-400.0,0.00049485,120]
[377327244,1754348625696,-400.0,0.00049485,120]
[377327245,1754348625716,-400.2940977,0.00049485,120]
[377327246,1754348625739,-2278.05,0.00049485,120]
[377327247,1754348625759,-400.0,0.00049485,120]
[377327248,1754348625780,-1425.16,0.00049485,120]
[377327249,1754348625801,-1097.51,0.00049485,120]
[377327250,1754348625822,-1410.59,0.00049485,120]
[377327251,1754348625843,-400.0,0.00049485,120]
[377327252,1754348625865,-400.0,0.00049485,120]
[377327253,1754348625889,-3388.4,0.00049485,120]
[377327254,1754348625910,-400.0,0.00049485,120]
[377327255,1754348625931,-400.0,0.00049485,120]
[377327256,1754348625955,-2924.42,0.00049485,120]
[377327257,1754348625979,-400.0,0.00049485,120]
[377327258,1754348626002,-1296.64,0.00049485,120]
[377327259,1754348626024,-400.0,0.00049485,120]
[377327260,1754348626045,-400.0,0.00049485,120]
[377327261,1754348626065,-400.0,0.00049485,120]
[377327262,1754348626086,-400.0,0.00049485,120]
[377327263,1754348626111,-400.0,0.00049485,120]
[377327264,1754348626131,-5944.28,0.00049485,120]
[377327265,1754348626151,-400.0,0.00049485,120]
[377327266,1754348626175,-400.0,0.00049485,120]
[377327267,1754348626198,-706.44,0.00049485,120]
[377327268,1754348626220,-2567.74,0.00049485,120]
[377327269,1754348626244,-1045.36,0.00049485,120]
[377327270,1754348626269,-400.0,0.00049485,120]
[377327271,1754348626291,-3059.91,0.00049485,120]
[377327272,1754348626314,-400.0,0.00049485,120]
[377327273,1754348626338,-3227.73,0.00049485,120]
[377327274,1754348626361,-400.0,0.00049485,120]
[377327275,1754348626382,-400.0,0.00049485,120]
[377327276,1754348626403,-6295.35,0.00049485,120]
[377327277,1754348626427,-400.0,0.00049485,120]
[377327278,1754348626446,-400.0,0.00049485,120]
[377327279,1754348626468,-400.0,0.00049485,120]
[377327280,1754348626489,-2857.22,0.00049485,120]
[377327281,1754348626508,-400.0,0.00049485,120]
[377327282,1754348626528,-916.51,0.00049485,120]
[377327283,1754348626552,-400.0,0.00049485,120]
[377327284,1754348626576,-805.95,0.00049485,120]
[377327285,1754348626602,-1042.81,0.00049485,120]
[377327286,1754348626625,-3190.76,0.00049485,120]
[377327287,1754348626647,-3406.24,0.00049485,120]
[377327288,1754348626668,-2819.57,0.00049485,120]
[377327289,1754348626697,-400.0,0.00049485,120]
[377327290,1754348626719,-1246.98,0.00049485,120]
[377327291,1754348626742,-2568.33,0.00049485,120]
[377327292,1754348626769,-400.0,0.00049485,120]
[377327293,1754348626791,-3193.97,0.00049485,120]
[377327294,1754348626812,-3350.53,0.00049485,120]
[377327295,1754348626833,-400.0,0.00049485,120]
[377327296,1754348626854,-400.0,0.00049485,120]
[377327297,1754348626875,-2547.95,0.00049485,120]
[377327298,1754348626898,-912.56,0.00049485,120]
[377327299,1754348626919,-400.0,0.00049485,120]
[377327300,1754348626940,-400.0,0.00049485,120]
[377327301,1754348626960,-400.0,0.00049485,120]
[377327302,1754348626986,-2551.98,0.00049485,120]
[377327303,1754348627010,-400.0,0.00049486,120]
[377327304,1754348627034,-722.56,0.00049486,120]
[377327305,1754348627055,-400.0,0.00049486,120]
[377327306,1754348627076,-400.0,0.00049486,120]
[377327307,1754348627098,-544.0,0.00049486,120]
[377327308,1754348627118,-400.0,0.00049486,120]
[377327309,1754348627139,-804.0,0.00049486,120]
[377327310,1754348627162,-1668.11,0.00049486,120]
[377327311,1754348627183,-400.0,0.00049486,120]
[377327312,1754348627206,-4559.28,0.00049486,120]
[377327313,1754348627527,-400.0,0.00049486,120]
[377327314,1754348627551,-400.0,0.00049486,120]
[377327315,1754348627573,-400.0,0.00049486,120]
[377327316,1754348627596,-400.0,0.00049486,120]
[377327317,1754348627620,-1557.01,0.00049486,120]
[377327318,1754348627641,-581.41,0.00049486,120]
[377327319,1754348627663,-400.0,0.00049486,120]
[377327320,1754348627685,-1798.38,0.00049486,120]
[377327321,1754348627706,-1674.33,0.00049486,120]
[377327322,1754348627727,-532.05,0.00049486,120]
[377327323,1754348627748,-400.0,0.00049486,120]
[377327324,1754348627768,-427.36,0.00049486,120]
[377327325,1754348627789,-500.0,0.00049486,120]
[377327326,1754348627811,-1643.44,0.00049486,120]
[377327327,1754348627832,-2935.25,0.00049486,120]
[377327328,1754348627853,-400.0,0.00049486,120]
[377327329,1754348627876,-400.0,0.00049486,120]
[377327330,1754348627898,-400.0,0.00049486,120]
[377327331,1754348627919,-400.0,0.00049486,120]
[377327332,1754348627940,-400.0,0.00049486,120]
[377327333,1754348627961,-400.0,0.00049486,120]
[377327334,1754348627982,-400.0,0.00049486,120]
[377327335,1754348628003,-400.0,0.00049486,120]
[377327336,1754348628029,-1376.9,0.00049486,120]
[377327337,1754348628051,-400.0,0.00049486,120]
[377327338,1754348628072,-400.0,0.00049486,120]
[377327339,1754348628092,-400.0,0.00049486,120]
[377327340,1754348628114,-867.8,0.00049486,120]
[377327341,1754348628135,-1408.99,0.00049486,120]
[377327342,1754348628160,-455.28,0.00049486,120]
[377327343,1754348628180,-1192.76,0.00049486,120]
[377327344,1754348628201,-1114.97,0.00049486,120]
[377327345,1754348628221,-400.0,0.00049486,120]
[377327346,1754348628243,-400.0,0.00049486,120]
[377327347,1754348628264,-4244.34,0.00049486,120]
[377327348,1754348628285,-574.65,0.00049486,120]
[377327349,1754348628305,-560.0,0.00049486,120]
[377327350,1754348628327,-400.0,0.00049486,120]
[377327351,1754348628348,-400.0,0.00049486,120]
[377327352,1754348628371,-400.0,0.00049486,120]
[377327353,1754348628392,-1569.77,0.00049486,120]
[377327354,1754348628413,-290.43249108,0.00049486,120]
[377327355,1754348628433,-2105.83,0.00049486,120]
[377327356,1754348628455,-400.0,0.00049486,120]
[377327357,1754348628475,-400.0,0.00049486,120]
[377327358,1754348628496,-1115.65,0.00049486,120]
[377327359,1754348628516,-334.65504692,0.00049486,120]
[377327360,1754348628537,-759.95,0.00049486,120]
[377327361,1754348628557,-4683.13,0.00049486,120]
[377327362,1754348628578,-335.16647881,0.00049486,120]
[377327363,1754348628598,-496.75,0.00049486,120]
[377327364,1754348628621,-400.0,0.00049486,120]
[377327365,1754348628642,-400.0,0.00049486,120]
[377327366,1754348628663,-400.0,0.00049486,120]
[377327367,1754348628689,-3086.04,0.00049486,120]
[377327368,1754348628712,-407.59,0.00049486,120]
[377327369,1754348628735,-400.0,0.00049486,120]
[377327370,1754348628757,-400.0,0.00049486,120]
[377327371,1754348628778,-400.0,0.00049486,120]
[377327372,1754348628800,-497.23,0.00049486,60]
[377327373,1754348628822,-10741.82,0.00049486,120]
[377327374,1754348628843,-400.0,0.00049486,120]
[377327375,1754348628867,-400.0,0.00049486,120]
[377327376,1754348628889,-754.72,0.00049486,120]
[377327377,1754348628912,-2330.46,0.00049486,120]
[377327378,1754348628934,-419.51,0.00049486,120]
[377327379,1754348628955,-400.0,0.00049486,120]
[377327380,1754348628977,-400.0,0.00049486,120]
[377327381,1754348628998,-970.9,0.00049486,120]
[377327382,1754348629019,-885.14,0.00049486,120]
[377327383,1754348629040,-1505.93,0.00049486,120]
[377327384,1754348629062,-315.5,0.00049492,120]
[377327385,1754348629085,-54091.1659833,0.00049547,4]
[377327386,1754348629107,-13522.7914958,0.00049551,4]
[377327387,1754348629130,-13522.7914958,0.00049553,4]
[377327388,1754348629152,-400.0,0.00049556,120]
[377327389,1754348629178,-400.0,0.00049556,120]
[377327390,1754348629200,-2000.0,0.00049557,120]
[377327391,1754348629222,-665.09,0.00049557,120]
[377327392,1754348629245,-400.0,0.00049557,120]
[377327393,1754348629268,-1620.52,0.00049557,120]
[377327394,1754348629288,-1046.66,0.00049557,120]
[377327395,1754348629309,-471.39,0.00049557,120]
[377327396,1754348629331,-1013.4,0.00049557,120]
[377327397,1754348629353,-2554.04,0.00049557,120]
[377327398,1754348629376,-400.0,0.00049557,120]
[377327399,1754348629398,-537.06,0.00049557,120]
[377327400,1754348629419,-2133.48,0.00049557,120]
[377327401,1754348629441,-1210.26957954,0.00049557,120]
[377327402,1754348669447,-160.19,0.00031,3]
[377327403,1754348669469,-169.31501334,0.00047903,120]
[377327404,1754348669491,-150.0,0.0004807,2]
[377327405,1754348669512,-151.0,0.00048116,15]
[377327406,1754348669534,-542.15752622,0.00048234,2]
[377327407,1754348669554,-151.0,0.00048262,15]
[377327408,1754348669576,-690.98508244,0.00048398,2]
[377327409,1754348669598,-839.81263865,0.00048563,2]
[377327410,1754348669618,-988.64019487,0.00048727,2]
[377327411,1754348669639,-200.0,0.000488,34]
[377327412,1754348669663,-1137.46775109,0.00048891,2]
[377327413,1754348669683,-843.0,0.00049,2]
[377327414,1754348669705,-1286.2953073,0.00049055,2]
[377327415,1754348669729,-191.55,0.00049088,7]
[377327416,1754348669751,-1435.12286352,0.00049219,2]
[377327417,1754348669773,-1583.95041974,0.00049383,2]
[377327418,1754348669795,-150.59122118,0.00049457,120]
[377327419,1754348669816,-400.0,0.00049485,120]
[377327420,1754348669837,-400.0,0.00049485,120]
[377327421,1754348669860,-614.7,0.00049485,120]
[377327422,1754348669881,-400.0,0.00049485,120]
[377327423,1754348669904,-400.0,0.00049485,120]
[377327424,1754348669925,-4826.67,0.00049485,120]
[377327425,1754348669948,-1348.96,0.00049485,120]
[377327426,1754348669969,-400.0,0.00049485,120]
[377327427,1754348669991,-2896.28,0.00049485,120]
[377327428,1754348670013,-3911.99,0.00049485,120]
[377327429,1754348670033,-400.0,0.00049485,120]
[377327430,1754348670059,-400.0,0.00049485,120]
[377327431,1754348670081,-10267.89,0.00049485,120]
[377327432,1754348670103,-1217.3,0.00049485,120]
[377327433,1754348670124,-1142.86,0.00049485,120]
[377327434,1754348670145,-2542.03,0.00049485,120]
[377327435,1754348670165,-400.0,0.00049485,120]
[377327436,1754348670187,-400.0,0.00049485,120]
[377327437,1754348670208,-561.7,0.00049485,120]
[377327438,1754348670230,-2667.27,0.00049485,120]
[377327439,1754348670253,-400.0,0.00049485,120]
[377327440,1754348670277,-400.0,0.00049485,120]
[377327441,1754348670299,-2675.74,0.00049485,120]
[377327442,1754348670323,-3689.41,0.00049485,120]
[377327443,1754348670345,-400.0,0.00049485,120]
[377327444,1754348670369,-400.0,0.00049485,120]
[377327445,1754348670393,-400.0,0.00049485,120]
[377327446,1754348670415,-5950.52,0.00049485,120]
[377327447,1754348670438,-547.97,0.00049485,120]
[377327448,1754348670463,-400.0,0.00049485,120]
[377327449,1754348670485,-825.83,0.00049485,120]
[377327450,1754348670508,-500.0,0.00049485,120]
[377327451,1754348670532,-1503.55,0.00049485,120]
[377327452,1754348670557,-1741.93,0.00049485,120]
[377327453,1754348670582,-3238.99,0.00049485,120]
[377327454,1754348670606,-400.0,0.00049485,120]
[377327455,1754348670627,-509.82,0.00049486,120]
[377327456,1754348670648,-400.0,0.00049486,120]
[377327457,1754348670669,-447.08,0.00049486,120]
[377327458,1754348670690,-963.38,0.00049486,120]
[377327459,1754348670714,-1015.16,0.00049486,120]
[377327460,1754348670736,-595.84,0.00049486,120]
[377327461,1754348670759,-400.0,0.00049486,120]
[377327462,1754348670780,-829.09,0.00049486,120]
[377327463,1754348670805,-17718.09,0.00049486,120]
[377327464,1754348670826,-655.87,0.00049486,120]
[377327465,1754348670846,-400.0,0.00049486,120]
[377327466,1754348670866,-400.0,0.00049486,120]
[377327467,1754348670887,-1491.37,0.00049486,120]
[377327468,1754348670908,-759.8,0.00049486,120]
[377327469,1754348670928,-2602.75,0.00049486,120]
[377327470,1754348670948,-400.0,0.00049486,120]
[377327471,1754348670969,-150.59122118,0.00049506,120]
[377327472,1754348670990,-1732.77797594,0.00049547,2]
[377327473,1754348671015,-150.59122118,0.00049555,120]
[377327474,1754348671040,-400.0,0.00049556,120]
[377327475,1754348671062,-400.0,0.00049556,120]
[377327476,1754348671083,-400.0,0.00049556,120]
[377327477,1754348671104,-500.0,0.00049556,120]
[377327478,1754348671139,-400.0,0.00049556,120]
[377327479,1754348671175,-1506.38042046,0.00049557,120]
[377327480,1754348671209,-3173.24,0.00049557,120]
[377327481,1754348671246,-570.01,0.00049557,120]
[377327482,1754348671282,-704.63,0.00049557,120]
[377327483,1754348671319,-474.33,0.00049557,120]
[377327484,1754348671351,-803.43,0.00049557,120]
[377327485,1754348671385,-2303.66,0.00049557,120]
[377327486,1754348671417,-400.0,0.00049557,120]
[377327487,1754348671455,-400.0,0.00049557,120]
[377327488,1754348671485,-749.3,0.00049557,120]
[377327489,1754348671516,-815.49,0.00049557,120]
[377327490,1754348671546,-500.0,0.00049557,120]
[377327491,1754348671577,-2350.21,0.00049557,120]
[377327492,1754348671607,-2010.25,0.00049557,120]
[377327493,1754348671637,-400.0,0.00049557,120]
[377327494,1754348671668,-1633.08,0.00049557,120]
[377327495,1754348671699,-400.0,0.00049557,120]
[377327496,1754348671733,-1682.89,0.00049557,120]
[377327497,1754348671765,-960.3,0.00049557,120]
[377327498,1754348671798,-3404.58,0.00049557,120]
[377327499,1754348671829,-400.57526615,0.00049557,30]
[377327500,1754348671863,-400.0,0.00049557,120]
[377327501,1754348671894,-964.4,0.00049557,120]
[377327502,1754348671927,-150.0,0.00049557,12]
[377327503,1754348671959,-1134.62,0.00049557,120]
[377327504,1754348671992,-400.0,0.00049557,120]
[377327505,1754348672027,-400.0,0.00049557,120]
[377327506,1754348672059,-400.0,0.00049557,120]
[377327507,1754348672093,-400.0,0.00049557,120]
[377327508,1754348672127,-500.0,0.00049557,120]
[377327509,1754348672159,-2974.09,0.00049557,120]
[377327510,1754348672191,-400.0,0.00049557,120]
[377327511,1754348672225,-400.0,0.00049557,120]
[377327512,1754348672257,-2870.25,0.00049557,120]
[377327513,1754348672292,-502.99,0.00049557,120]
[377327514,1754348672326,-400.0,0.00049557,120]
[377327515,1754348672364,-1753.03,0.00049557,120]
[377327516,1754348672396,-400.0,0.00049557,120]
[377327517,1754348672430,-400.0,0.00049557,120]
[377327518,1754348672463,-1580.01,0.00049557,120]
[377327519,1754348672499,-400.0,0.00049557,120]
[377327520,1754348672534,-2882.38,0.00049557,120]
[377327521,1754348672570,-569.52,0.00049557,120]
[377327522,1754348672603,-400.0,0.00049557,120]
[377327523,1754348672636,-400.0,0.00049557,120]
[377327524,1754348672673,-3804.72,0.00049557,120]
[377327525,1754348672719,-1537.29,0.00049557,120]
[377327526,1754348672760,-1578.74,0.00049557,120]
[377327527,1754348672800,-400.0,0.00049557,120]
[377327528,1754348672836,-400.0,0.00049557,120]
[377327529,1754348672873,-439.76,0.00049557,120]
[377327530,1754348672908,-1304.76,0.00049557,120]
[377327531,1754348672942,-400.0,0.00049557,120]
[377327532,1754348672976,-413.92,0.00049557,120]
[377327533,1754348673009,-2763.59,0.00049557,120]
[377327534,1754348673041,-400.0,0.00049557,120]
[377327535,1754348673074,-597.28,0.00049557,120]